bitfinex-derivatives/quotes_BTCF0:USTF0_20250716
["timestamp","ask_amount","ask_price","bid_price","bid_amount"]
[1752701348062,1.17969174,120040.0,120030.0,0.28151917]
[1752701348263,0.58385174,120040.0,120030.0,0.35636569]
[1752701348560,1.17949174,120040.0,120030.0,0.35636569]
[1752701348768,1.17949174,120040.0,120030.0,0.35636571]
[1752701349565,0.58385174,120040.0,120030.0,0.35636571]
[1752701349762,1.17949174,120040.0,120030.0,0.35636571]
[1752701350162,1.17949174,120040.0,120030.0,0.18981511]
[1752701350366,1.17949174,120040.0,120030.0,0.10172511]
[1752701351064,1.17941174,120040.0,120030.0,0.14876511]
[1752701351255,1.17941174,120040.0,120030.0,0.15335511]
[1752701351869,1.17941174,120040.0,120030.0,0.24505909]
[1752701352069,1.17941174,120040.0,120030.0,0.07850859]
[1752701352672,1.17941174,120040.0,120030.0,0.24505909]
[1752701352673,0.58385174,120040.0,120030.0,0.24505909]
[1752701352868,1.17941174,120040.0,120030.0,0.24505909]
[1752701353469,0.58385174,120040.0,120030.0,0.24505909]
[1752701353671,1.17933174,120040.0,120030.0,0.31994608]
[1752701354670,1.17933174,120040.0,120030.0,0.31994648]
[1752701355056,0.58385174,120040.0,120030.0,0.31994648]
[1752701355266,1.17929174,120040.0,120030.0,0.31994648]
[1752701355460,1.17933174,120040.0,120030.0,0.31994648]
[1752701358374,1.17933174,120040.0,120030.0,0.15339598]
[1752701358572,0.82865372,120040.0,120030.0,0.31994648]
[1752701358772,1.17933174,120040.0,120030.0,0.31994648]
[1752701361571,1.17933174,120040.0,120030.0,0.24505949]
[1752701362273,1.17933174,120040.0,120030.0,0.31996625]
[1752701363164,1.17933174,120040.0,120030.0,0.31019944]
[1752701363365,1.17933174,120040.0,120030.0,0.31996624]
[1752701363971,1.17933174,120040.0,120030.0,0.15341574]
[1752701366175,1.17901174,120040.0,120030.0,0.15341574]
[1752701366573,1.17897174,120040.0,120030.0,0.15341574]
[1752701367070,0.58385174,120040.0,120030.0,0.15341574]
[1752701367269,1.17897174,120040.0,120030.0,0.15341574]
[1752701368973,1.17897174,120040.0,120030.0,0.14364894]
[1752701375682,1.17897174,120040.0,120030.0,0.06874218]
[1752701375983,1.17902174,120040.0,120030.0,0.14367777]
[1752701378686,1.17902174,120040.0,120030.0,0.15344474]
[1752701379787,0.58390174,120040.0,120030.0,0.17163256]
[1752701379979,1.17862174,120040.0,120030.0,0.17163256]
[1752701380180,1.17862174,120040.0,120030.0,0.33818326]
[1752701380482,1.17862174,120040.0,120030.0,0.32841629]
[1752701380680,1.17862174,120040.0,120030.0,0.33818316]
[1752701381081,0.82794372,120040.0,120030.0,0.33818316]
[1752701381382,1.17862174,120040.0,120030.0,0.17163245]
[1752701381587,1.17862174,120040.0,120030.0,0.33818315]
[1752701382181,1.17862174,120040.0,120030.0,0.17163245]
[1752701383585,1.17862174,120040.0,120030.0,0.33818315]
[1752701384991,0.82794372,120040.0,120030.0,0.33818315]
[1752701385287,1.17862174,120040.0,120030.0,0.13752245]
[1752701385689,1.17862174,120040.0,120030.0,0.30407315]
[1752701386390,0.82794372,120040.0,120030.0,0.32107992]
[1752701386591,1.17862174,120040.0,120030.0,0.32107992]
[1752701386791,1.17862174,120040.0,120030.0,0.33715992]
[1752701387090,0.82794372,120040.0,120030.0,0.33715992]
[1752701387292,1.17862174,120040.0,120030.0,0.35381992]
[1752701387686,1.17862174,120040.0,120030.0,0.35617992]
[1752701387892,1.17862174,120040.0,120030.0,0.28124433]
[1752701388084,1.17862174,120040.0,120030.0,0.38608611]
[1752701388688,0.58390174,120040.0,120030.0,0.38608611]
[1752701388892,0.58390174,120040.0,120030.0,0.73676413]
[1752701388893,0.23322372,120040.0,120030.0,0.73676413]
[1752701389097,0.82762372,120040.0,120030.0,0.73676413]
[1752701389594,0.82762372,120040.0,120030.0,0.73676359]
[1752701389982,0.82762372,120040.0,120030.0,0.38608557]
[1752701390499,1.17830174,120040.0,120030.0,0.38608557]
[1752701390989,1.17830174,120040.0,120030.0,0.28124379]
[1752701391390,1.17830174,120040.0,120030.0,0.26423702]
[1752701393094,0.82762372,120040.0,120030.0,0.26423702]
[1752701394395,1.17830174,120040.0,120030.0,0.26423702]
[1752701394894,0.82762372,120040.0,120030.0,0.26423702]
[1752701395093,1.17830174,120040.0,120030.0,0.26423702]
[1752701397696,1.17830174,120040.0,120030.0,0.28131591]
[1752701397899,1.17830174,120040.0,120030.0,1.78131578]
[1752701399599,1.17830174,120040.0,120030.0,1.85622108]
[1752701400694,1.17830174,120040.0,120030.0,1.84645489]
[1752701400895,1.17830174,120040.0,120030.0,1.85622115]
[1752701401894,1.17830174,120040.0,120030.0,0.08487156]
[1752701401895,1.52897976,120040.0,120030.0,0.08487156]
[1752701402089,1.17830174,120040.0,120030.0,0.00996626]
[1752701402294,1.52897976,120040.0,120030.0,0.00996626]
[1752701402494,1.52897976,120040.0,120030.0,0.08487156]
[1752701402896,1.17830174,120040.0,120030.0,0.08487156]
[1752701403297,1.52897976,120040.0,120030.0,0.00996774]
[1752701403602,1.52897976,120040.0,120030.0,0.08487304]
[1752701404001,1.52897976,120040.0,120030.0,0.13122304]
[1752701405107,1.17830174,120040.0,120030.0,0.13122304]
[1752701405501,1.17830174,120040.0,120030.0,0.04655]
[1752701405806,1.17830174,120040.0,120030.0,0.05631731]
[1752701406207,1.52897976,120040.0,120030.0,0.05631738]
[1752701407317,0.0416421,120020.0,120000.0,0.10972178]
[1752701407509,1.11129642,120010.0,120000.0,0.2510009]
[1752701408399,0.51725642,120010.0,120000.0,0.2510009]
[1752701408702,0.61260988,120020.0,120010.0,0.26797229]
[1752701408911,0.9632879,120020.0,120010.0,0.26797229]
[1752701409298,0.61260988,120020.0,120010.0,0.26797229]
[1752701410498,0.61260988,120020.0,120010.0,0.26897229]
[1752701410703,0.61260988,120020.0,120010.0,0.61965031]
[1752701411905,0.61260988,120020.0,120010.0,0.26897229]
[1752701412110,0.01860988,120020.0,120010.0,0.61965031]
[1752701412303,0.61260988,120020.0,120010.0,0.61965031]
[1752701412503,0.06648472,120040.0,120030.0,0.2509607]
[1752701412704,0.66044472,120040.0,120030.0,0.60163872]
[1752701413609,0.23302152,120040.0,120030.0,0.60163872]
[1752701413807,0.82694152,120040.0,120030.0,0.2509607]
[1752701414011,0.58369954,120040.0,120030.0,0.2519607]
[1752701416118,0.23302152,120040.0,120030.0,0.2519607]
[1752701416315,0.23302152,120040.0,120030.0,0.32578291]
[1752701419531,0.23302152,120040.0,120030.0,0.2509607]
[1752701420914,0.58369954,120040.0,120030.0,0.2509607]
[1752701423611,0.58369954,120040.0,120030.0,0.15920767]
[1752701423813,0.1665645,120020.0,120010.0,0.37050067]
[1752701424017,1.12920584,120020.0,120010.0,0.37281067]
[1752701424218,1.12940584,120020.0,120010.0,0.37301067]
[1752701426212,1.12940584,120020.0,120010.0,0.26816889]
[1752701427721,1.12940584,120020.0,120010.0,0.27016889]
[1752701427921,1.12940584,120020.0,120010.0,0.34498798]
[1752701429422,1.12940584,120020.0,120010.0,0.27016889]
[1752701430918,1.12940584,120020.0,120010.0,0.34498534]
[1752701431722,1.12940584,120020.0,120010.0,0.34398534]
[1752701432621,1.12940584,120020.0,120010.0,0.32700145]
[1752701435221,0.53568584,120020.0,120010.0,0.32700145]
[1752701435427,1.12920584,120020.0,120010.0,0.31203077]
[1752701436126,1.12920584,120020.0,120010.0,0.32700145]
[1752701436328,0.77852782,120020.0,120010.0,0.32700145]
[1752701437525,0.77852782,120020.0,120010.0,0.252185]
[1752701438020,0.77852782,120020.0,120010.0,0.35702678]
[1752701440117,1.12920584,120020.0,120010.0,0.35702678]
[1752701440628,0.7602845,120020.0,120010.0,0.35702678]
[1752701442322,0.7602845,120020.0,120010.0,0.252185]
[1752701443129,1.11096252,120020.0,120010.0,0.252185]
[1752701447931,0.7602845,120020.0,120010.0,0.252185]
[1752701448136,1.11096252,120020.0,120010.0,0.252185]
[1752701448734,1.11096252,120020.0,120010.0,0.35702678]
[1752701449329,0.7602845,120020.0,120010.0,0.35702678]
[1752701449524,1.11096252,120020.0,120010.0,0.35702678]
[1752701451233,1.11096252,120020.0,120010.0,0.252185]
[1752701451433,1.11096252,120020.0,120010.0,0.32701908]
[1752701452929,0.51744252,120020.0,120010.0,0.32701908]
[1752701453134,1.11052252,120020.0,120010.0,0.252185]
[1752701455139,0.7598445,120020.0,120010.0,0.252185]
[1752701458043,0.7598445,120020.0,120010.0,0.35702678]
[1752701460139,0.59304,120020.0,120010.0,0.7077048]
[1752701460441,0.59304,120020.0,120010.0,0.60286302]
[1752701460944,0.59304,120020.0,120010.0,0.70771305]
[1752701463846,0.59304,120020.0,120010.0,0.60286302]
[1752701464147,0.59304,120020.0,120010.0,0.252185]
[1752701464349,0.59304,120020.0,120010.0,0.70767761]
[1752701464749,0.7596051,120020.0,120010.0,0.70767761]
[1752701465453,0.7596051,120020.0,120010.0,0.35699959]
[1752701465951,0.7596051,120020.0,120010.0,0.70767761]
[1752701466749,0.7596051,120020.0,120010.0,0.60286302]
[1752701466950,0.59304,120020.0,120010.0,0.60286302]
[1752701467254,0.59304,120020.0,120010.0,0.70765945]
[1752701470962,0.59304,120020.0,120010.0,0.60286302]
[1752701471854,0.59304,120020.0,120010.0,0.252185]
[1752701472051,0.59304,120020.0,120010.0,0.60286302]
[1752701472260,0.59304,120020.0,120010.0,0.70765945]
[1752701472566,0.59304,120020.0,120010.0,0.60286302]
[1752701472958,0.59304,120020.0,120010.0,0.51468584]
[1752701474259,0.59304,120020.0,120010.0,0.252185]
[1752701474260,0.7596051,120020.0,120010.0,0.252185]
[1752701474456,0.7596051,120020.0,120010.0,0.51468584]
[1752701474656,1.02210594,120020.0,120010.0,0.51468584]
[1752701474858,1.02210594,120020.0,120010.0,0.219005]
[1752701474859,1.28460678,120020.0,120010.0,0.219005]
[1752701475060,0.7596051,120020.0,120010.0,0.29384802]
[1752701475564,1.28460678,120020.0,120010.0,0.48150584]
[1752701475765,1.28460678,120020.0,120010.0,0.219005]
[1752701475961,1.28460678,120020.0,120010.0,0.29383494]
[1752701477055,1.10969403,120020.0,120010.0,0.29383494]
[1752701477265,0.7596051,120020.0,120010.0,0.32639494]
[1752701477959,0.7596051,120020.0,120010.0,0.251565]
[1752701478763,1.10969403,120020.0,120010.0,0.251565]
[1752701480065,1.10969403,120020.0,120010.0,0.167775]
[1752701480264,1.10969403,120020.0,120010.0,0.07598315]
[1752701481165,1.10969403,120020.0,120010.0,0.0012]
[1752701482269,1.10969403,120020.0,120010.0,0.167779]
[1752701482270,0.7596051,120020.0,120010.0,0.167779]
[1752701482473,0.7596051,120020.0,120010.0,0.221839]
[1752701482675,1.10969403,120020.0,120010.0,0.13004315]
[1752701483068,1.10969403,120020.0,120010.0,0.07598315]
[1752701483774,0.7596051,120020.0,120010.0,0.07598315]
[1752701483975,1.10969403,120020.0,120010.0,0.07598315]
[1752701484376,0.7596051,120020.0,120010.0,0.07598315]
[1752701484579,1.10969403,120020.0,120010.0,0.07598315]
[1752701485269,1.10969403,120020.0,120010.0,0.0012]
[1752701486577,1.11809267,120020.0,120010.0,0.0012]
[1752701489273,1.11809267,120020.0,120010.0,0.06093411]
[1752701490679,0.76800374,120020.0,120010.0,0.06093411]
[1752701490878,1.11809267,120020.0,120010.0,0.06093411]
[1752701492679,1.28474067,120020.0,120010.0,0.06093411]
[1752701493074,0.93465174,120020.0,120010.0,0.06093411]
[1752701493276,1.28474067,120020.0,120010.0,0.06093411]
[1752701495077,1.11809267,120020.0,120010.0,0.06093411]
[1752701500381,1.53474067,120020.0,120010.0,1e-08]
[1752701500579,0.1665929,120000.0,119990.0,0.07469765]
[1752701500785,1.31647784,120000.0,119980.0,0.00168]
[1752701500993,0.51669573,119990.0,119980.0,0.00168]
[1752701502177,0.51669573,119990.0,119980.0,0.00868]
[1752701503088,0.1666345,119970.0,119960.0,0.10953671]
[1752701503285,0.1666484,119960.0,119950.0,0.15503671]
[1752701503480,0.51673733,119960.0,119950.0,0.33701901]
[1752701503685,0.51673733,119960.0,119950.0,1.7481223]
[1752701503986,0.51673733,119960.0,119950.0,1.58146]
[1752701504183,0.51673733,119960.0,119950.0,0.08392]
[1752701504691,0.51673733,119960.0,119950.0,0.2505823]
[1752701505090,0.51673733,119960.0,119950.0,0.2645823]
[1752701505481,0.51673733,119960.0,119950.0,0.09792]
[1752701506891,0.51673733,119960.0,119950.0,0.2645823]
[1752701507293,0.51673733,119960.0,119950.0,0.2311223]
[1752701507694,0.58180108,119960.0,119950.0,0.2311223]
[1752701508090,0.58180108,119960.0,119950.0,0.2621223]
[1752701509188,0.58180108,119960.0,119950.0,0.2645823]
[1752701510396,0.58180108,119960.0,119950.0,0.32423953]
[1752701512497,0.23171215,119960.0,119950.0,0.32423953]
[1752701512694,0.79186949,119970.0,119960.0,0.1666486]
[1752701512695,0.01823095,119970.0,119960.0,0.1666486]
[1752701512900,0.01823095,119970.0,119960.0,0.60065753]
[1752701512901,0.61719095,119970.0,119960.0,0.60065753]
[1752701513489,0.01823095,119970.0,119960.0,0.67523303]
[1752701513695,0.61743095,119970.0,119960.0,0.67523303]
[1752701514494,0.22666888,120000.0,119990.0,0.2505269]
[1752701514798,0.82582888,120000.0,119990.0,0.66022124]
[1752701515300,0.84103888,120000.0,119990.0,0.31013231]
[1752701515599,0.90854452,120000.0,119990.0,0.31013231]
[1752701515792,0.91254452,120000.0,119990.0,0.31013231]
[1752701519295,1.28086345,120000.0,119990.0,0.14352541]
[1752701519500,1.28106345,120000.0,119990.0,0.08412]
[1752701520201,1.28106345,120000.0,119990.0,0.2507269]
[1752701520501,1.28106345,120000.0,119990.0,0.31033231]
[1752701522202,0.93097452,120000.0,119990.0,0.31033231]
[1752701522806,1.28106345,120000.0,119990.0,0.31033231]
[1752701525399,1.28106345,120000.0,119980.0,0.13418091]
[1752701525400,0.1666069,119990.0,119980.0,0.13418091]
[1752701525601,0.55006583,119990.0,119980.0,0.1460953]
[1752701525797,1.14874583,119990.0,119980.0,0.2531008]
[1752701526000,0.7986569,119990.0,119980.0,0.3276763]
[1752701526704,0.10526562,120000.0,119990.0,0.1847269]
[1752701526897,0.87065862,120000.0,119990.0,0.66278825]
[1752701527408,0.86665862,120000.0,119990.0,0.66278825]
[1752701527710,0.86665862,120000.0,119990.0,0.31269932]
[1752701527906,1.23477755,120000.0,119990.0,0.31269932]
[1752701528106,1.23877755,120000.0,119990.0,0.2530869]
[1752701528313,1.23877755,120000.0,119990.0,0.31269236]
[1752701528811,1.23877755,120000.0,119990.0,0.14608546]
[1752701529009,1.23877755,120000.0,119990.0,0.08814546]
[1752701529520,1.23877755,120000.0,119990.0,0.11195546]
[1752701534020,1.23877755,120000.0,119990.0,0.05960546]
[1752701534226,1.58886648,120000.0,119990.0,0.05960546]
[1752701535926,1.23877755,120000.0,119990.0,0.05960546]
[1752701536426,0.1999769,119990.0,119980.0,0.11195546]
[1752701536626,0.55006583,119990.0,119980.0,0.11195546]
[1752701537133,0.55006583,119990.0,119980.0,0.05235]
[1752701537329,0.55006583,119990.0,119980.0,0.1120313]
[1752701537525,0.55006583,119990.0,119980.0,0.2786521]
[1752701537725,0.55306583,119990.0,119980.0,0.2189708]
[1752701538429,0.55306583,119990.0,119980.0,0.05235]
[1752701539329,0.55306583,119990.0,119980.0,0.02854]
[1752701540032,0.56129572,119990.0,119980.0,0.02854]
[1752701540330,0.56129572,119990.0,119980.0,0.1031155]
[1752701541331,0.56129572,119990.0,119980.0,0.0983755]
[1752701541628,0.56129572,119990.0,119980.0,0.05977316]
[1752701541821,0.1666208,119980.0,119970.0,0.05977316]
[1752701542026,1.13102415,119980.0,119970.0,0.05977316]
[1752701542226,1.13122415,119980.0,119970.0,0.05997316]
[1752701542432,1.13122415,119980.0,119970.0,0.0002]
[1752701544028,1.13122415,119980.0,119970.0,0.04781]
[1752701544231,1.13122415,119980.0,119970.0,0.05255]
[1752701544931,0.18513522,119980.0,119970.0,0.2373047]
[1752701545135,0.78041522,119980.0,119970.0,0.2533147]
[1752701545328,1.13050415,119980.0,119970.0,0.2533147]
[1752701548032,1.13050415,119980.0,119970.0,0.31304276]
[1752701548537,1.13150415,119980.0,119970.0,0.31304276]
[1752701549438,1.13150415,119980.0,119970.0,0.14640806]
[1752701549739,1.13150415,119980.0,119970.0,0.13039806]
[1752701550233,1.13150415,119980.0,119970.0,0.10753806]
[1752701550433,1.13150415,119980.0,119970.0,0.05992806]
[1752701551139,1.13150415,119980.0,119970.0,0.11227806]
[1752701551637,1.13150415,119980.0,119970.0,0.05992806]
[1752701552035,1.13150415,119980.0,119970.0,0.0002]
[1752701552538,2.28418415,119980.0,119970.0,0.0002]
[1752701552738,0.1666347,119970.0,119960.0,0.05972806]
[1752701553038,0.51672363,119970.0,119960.0,0.05972806]
[1752701553738,0.1666347,119970.0,119960.0,0.05972806]
[1752701553940,0.51672363,119970.0,119960.0,0.05972806]
[1752701554341,0.1666347,119970.0,119960.0,0.05972806]
[1752701554640,0.1666486,119960.0,119950.0,0.11207806]
[1752701554842,1.13274813,119960.0,119950.0,0.2190125]
[1752701555043,1.13274813,119960.0,119950.0,0.2530825]
[1752701555628,1.13274813,119960.0,119950.0,0.08642]
[1752701555832,1.13274813,119960.0,119950.0,0.09242]
[1752701556434,0.7826592,119960.0,119950.0,0.05361]
[1752701556639,1.13274813,119960.0,119950.0,0.05361]
[1752701556840,1.13274813,119960.0,119950.0,0.12827578]
[1752701557242,1.48283706,119960.0,119950.0,0.06574083]
[1752701557741,1.49137327,119960.0,119950.0,0.06574083]
[1752701558042,1.49137327,119960.0,119950.0,0.006]
[1752701558242,0.1666625,119950.0,119940.0,0.12630578]
[1752701558438,0.51675143,119950.0,119940.0,0.12630578]
[1752701558637,0.51675143,119950.0,119940.0,0.05164]
[1752701559543,0.51675143,119950.0,119940.0,0.05764]
[1752701559942,0.1666625,119950.0,119940.0,0.05764]
[1752701560145,0.51675143,119950.0,119940.0,0.11737123]
[1752701560443,0.51675143,119950.0,119940.0,0.11269123]
[1752701561438,0.51675143,119950.0,119940.0,0.006]
[1752701562640,0.1666764,119940.0,119930.0,0.05973123]
[1752701562847,1.13723324,119940.0,119930.0,0.05973123]
[1752701563847,0.1666902,119930.0,119920.0,0.05973123]
[1752701564046,0.1667041,119920.0,119910.0,0.32648248]
[1752701564246,1.11807303,119920.0,119910.0,0.32648248]
[1752701565446,0.7679841,119920.0,119910.0,0.32648248]
[1752701565645,1.11807303,119920.0,119910.0,0.32648248]
[1752701565844,1.13697638,119920.0,119910.0,0.15976578]
[1752701566046,1.13697638,119920.0,119910.0,0.0921]
[1752701566246,0.78688745,119920.0,119910.0,0.18832467]
[1752701566435,1.48706531,119920.0,119910.0,0.11365889]
[1752701566940,1.48706531,119920.0,119910.0,0.007]
[1752701567452,1.49522598,119920.0,119910.0,0.007]
[1752701568447,0.1667181,119910.0,119900.0,0.11133889]
[1752701568647,0.58306335,119910.0,119900.0,0.31153089]
[1752701569647,0.01890335,119920.0,119910.0,0.251818]
[1752701569851,0.61990335,119920.0,119910.0,0.66160582]
[1752701570142,0.01890335,119920.0,119910.0,0.60190693]
[1752701570348,0.62094335,119920.0,119910.0,0.251818]
[1752701570541,0.01890335,119920.0,119910.0,0.60190693]
[1752701570749,0.62094335,119920.0,119910.0,0.67657271]
[1752701570945,0.62094335,119920.0,119910.0,0.60190693]
[1752701571242,0.62094335,119920.0,119910.0,0.70648364]
[1752701571644,0.01890335,119920.0,119910.0,0.70748364]
[1752701571843,0.62166335,119920.0,119910.0,0.70748364]
[1752701572044,1.13845638,119920.0,119910.0,0.0861]
[1752701572842,1.13845638,119920.0,119910.0,0.1606449]
[1752701573041,1.19931872,119920.0,119910.0,0.1606449]
[1752701573243,1.19931872,119920.0,119910.0,0.14576633]
[1752701573642,0.59655872,119920.0,119910.0,0.31248433]
[1752701573837,0.62226335,119920.0,119910.0,0.66376927]
[1752701574042,0.01890335,119920.0,119910.0,0.83055327]
[1752701574245,0.18560745,119920.0,119910.0,0.83055327]
[1752701574848,0.18560745,119920.0,119910.0,0.90509817]
[1752701576652,0.18560745,119920.0,119910.0,0.73831417]
[1752701577040,0.18560745,119920.0,119910.0,0.3273629]
[1752701577652,0.18560745,119920.0,119910.0,0.252818]
[1752701577947,0.18560745,119920.0,119910.0,0.3273629]
[1752701579554,0.18560745,119920.0,119910.0,0.252818]
[1752701579752,0.18560745,119920.0,119910.0,0.35739471]
[1752701580640,0.18560745,119920.0,119910.0,0.76834598]
[1752701581049,0.18560745,119920.0,119910.0,0.66376927]
[1752701581250,0.18560745,119920.0,119910.0,0.252818]
[1752701582446,0.18560745,119920.0,119910.0,0.32752376]
[1752701582646,0.18560745,119920.0,119910.0,0.252818]
[1752701583244,0.18560745,119920.0,119910.0,0.32752614]
[1752701583854,0.18560745,119920.0,119910.0,0.252818]
[1752701587457,0.18560745,119920.0,119910.0,0.35739471]
[1752701589457,0.18560745,119920.0,119910.0,0.35754717]
[1752701591150,0.18560745,119920.0,119910.0,0.252818]
[1752701593060,0.53624665,119920.0,119910.0,0.252818]
[1752701593363,0.18560745,119920.0,119910.0,0.252818]
[1752701593563,0.53624665,119920.0,119910.0,0.252818]
[1752701593760,0.53624665,119920.0,119910.0,0.0861]
[1752701593961,0.53624665,119920.0,119910.0,0.252818]
[1752701594161,0.53624665,119920.0,119910.0,0.32765098]
[1752701594362,0.53624665,119920.0,119910.0,0.0861]
[1752701594665,0.53624665,119920.0,119910.0,0.16093118]
[1752701594872,0.18560745,119920.0,119910.0,0.16093118]
[1752701595065,0.53624665,119920.0,119910.0,0.16093118]
[1752701596665,0.53624665,119920.0,119910.0,0.12279118]
[1752701597066,0.53624665,119920.0,119910.0,0.12742118]
[1752701597457,0.53624665,119920.0,119910.0,0.12279118]
[1752701597458,0.89510821,119920.0,119910.0,0.12279118]
[1752701597663,0.88688585,119920.0,119910.0,0.001]
[1752701598463,0.53624665,119920.0,119910.0,0.001]
[1752701598863,0.88688585,119920.0,119910.0,0.06088453]
[1752701599067,0.53624665,119920.0,119910.0,0.001]
[1752701599460,0.88688585,119920.0,119910.0,0.06088983]
[1752701599661,0.53624665,119920.0,119910.0,0.10831983]
[1752701599972,0.54479586,119920.0,119910.0,0.11294983]
[1752701600171,0.54479586,119920.0,119910.0,0.11294799]
[1752701600665,0.54479586,119920.0,119910.0,0.06088799]
[1752701600863,0.166718,119910.0,119900.0,0.0002]
[1752701601069,1.1209172,119910.0,119900.0,0.0002]
[1752701601671,0.770278,119910.0,119900.0,0.0002]
[1752701601973,1.1209172,119910.0,119900.0,0.0002]
[1752701602476,1.1219172,119910.0,119900.0,0.0002]
[1752701603174,2.2751572,119910.0,119900.0,0.0002]
[1752701603574,0.1667458,119890.0,119880.0,0.16000118]
[1752701603774,1.120585,119890.0,119880.0,0.16000118]
[1752701604774,1.12903859,119890.0,119880.0,0.16000118]
[1752701604975,1.14776976,119890.0,119880.0,0.16000118]
[1752701605478,1.13931617,119890.0,119880.0,0.16000118]
[1752701605778,1.13931617,119890.0,119880.0,0.2579298]
[1752701605973,1.13931617,119890.0,119880.0,0.33276098]
[1752701606178,1.13931617,119890.0,119880.0,0.2579298]
[1752701607072,0.62157117,119890.0,119880.0,0.68340018]
[1752701607279,0.62157117,119890.0,119880.0,0.71329817]
[1752701607479,0.78831697,119890.0,119880.0,0.71329817]
[1752701608074,1.13895617,119890.0,119880.0,0.16278917]
[1752701608275,0.78831697,119890.0,119880.0,0.36265897]
[1752701608480,0.62165117,119890.0,119880.0,0.71329817]
[1752701608880,0.1667414,119900.0,119890.0,0.2519158]
[1752701609080,0.7695814,119900.0,119890.0,0.602555]
[1752701610481,0.7695814,119900.0,119890.0,0.2519158]
[1752701611385,0.7695814,119900.0,119890.0,0.35664497]
[1752701611787,0.7695814,119900.0,119890.0,0.2519158]
[1752701612176,0.7695814,119900.0,119890.0,0.32663708]
[1752701612486,0.7695814,119900.0,119890.0,0.2519158]
[1752701613081,0.7719714,119900.0,119890.0,0.2519158]
[1752701614089,0.7719714,119900.0,119890.0,0.08517]
[1752701614291,1.1273806,119900.0,119890.0,0.32665981]
[1752701614692,1.1273806,119900.0,119890.0,0.2519158]
[1752701614988,0.7719714,119900.0,119890.0,0.2519158]
[1752701615192,0.7719714,119900.0,119890.0,0.602555]
[1752701615691,0.7719714,119900.0,119890.0,0.2519158]
[1752701617493,1.1273806,119900.0,119890.0,0.32665981]
[1752701618290,0.7767414,119900.0,119890.0,0.32665981]
[1752701618492,0.7767414,119900.0,119890.0,0.2519158]
[1752701618994,0.7767414,119900.0,119890.0,0.35664497]
[1752701619397,1.12653049,119900.0,119890.0,0.32353497]
[1752701619594,1.12653049,119900.0,119890.0,0.35659497]
[1752701619795,1.12653049,119900.0,119890.0,0.35890497]
[1752701625505,1.12653049,119900.0,119890.0,0.2541758]
[1752701625708,1.12653049,119900.0,119890.0,0.2543758]
[1752701626006,1.12653049,119900.0,119890.0,0.2377958]
[1752701627305,1.12653049,119900.0,119890.0,0.07105]
[1752701627605,1.14513085,119900.0,119890.0,0.04763]
[1752701628906,1.14513085,119900.0,119890.0,0.0002]
[1752701629099,1.14513085,119900.0,119890.0,0.10492917]
[1752701631104,1.14513085,119900.0,119890.0,0.0751278]
[1752701631800,1.14513085,119900.0,119890.0,0.0701278]
[1752701632607,0.1667458,119890.0,119880.0,0.10472917]
[1752701632813,0.18566685,119880.0,119870.0,0.15716917]
[1752701633011,1.20105315,119880.0,119870.0,0.15716917]
[1752701633212,1.20105315,119880.0,119870.0,0.19022917]
[1752701633404,1.20105315,119880.0,119870.0,0.19253917]
[1752701634114,0.60333315,119880.0,119870.0,0.19253917]
[1752701634410,0.68349425,119880.0,119870.0,0.6052229]
[1752701634614,0.68349425,119880.0,119870.0,0.2545837]
[1752701635006,0.85025395,119880.0,119870.0,0.2545837]
[1752701635811,0.68349425,119880.0,119870.0,0.2545837]
[1752701636012,0.68329425,119880.0,119870.0,0.70995207]
[1752701637010,0.85005395,119880.0,119870.0,0.70995207]
[1752701637511,0.68329425,119880.0,119870.0,0.70995207]
[1752701637714,0.85005395,119880.0,119870.0,0.70995207]
[1752701638303,0.85005395,119880.0,119870.0,0.35931287]
[1752701639116,0.68329425,119880.0,119870.0,0.35931287]
[1752701640500,0.68334425,119880.0,119870.0,0.35931287]
[1752701642615,0.85010395,119880.0,119870.0,0.35931287]
[1752701643418,1.20074315,119880.0,119870.0,0.35931287]
[1752701648319,1.20074315,119880.0,119870.0,0.05244]
[1752701648621,1.20074315,119880.0,119870.0,0.1275855]
[1752701648918,1.20074315,119880.0,119870.0,0.1228655]
[1752701649118,1.20074315,119880.0,119870.0,0.2944492]
[1752701649310,1.20074315,119880.0,119870.0,0.2195037]
[1752701649817,1.20890169,119880.0,119870.0,0.2195037]
[1752701650118,1.20890169,119880.0,119870.0,0.15765321]
[1752701650715,1.20890169,119880.0,119870.0,0.10512321]
[1752701650716,1.55954089,119880.0,119870.0,0.10512321]
[1752701650921,1.55954089,119880.0,119870.0,0.07516785]
[1752701651810,0.25274395,119880.0,119870.0,0.32857155]
[1752701652019,0.68206425,119880.0,119870.0,0.2536037]
[1752701652213,0.84882395,119880.0,119870.0,0.2536037]
[1752701653424,0.84882395,119880.0,119870.0,0.32857155]
[1752701653817,1.19946315,119880.0,119870.0,0.32857155]
[1752701654318,1.19946315,119880.0,119870.0,0.2536037]
[1752701654731,1.19946315,119880.0,119870.0,0.35852691]
[1752701655321,1.19946315,119880.0,119870.0,0.32444691]
[1752701656319,1.19946315,119880.0,119870.0,0.2195237]
[1752701656823,1.19946315,119880.0,119870.0,0.32444691]
[1752701657016,1.55010235,119880.0,119870.0,0.0002]
[1752701657418,1.55010235,119880.0,119870.0,0.18009006]
[1752701657626,1.19946315,119880.0,119870.0,0.21283896]
[1752701657921,0.60338315,119880.0,119870.0,0.29775945]
[1752701658129,1.19946315,119880.0,119870.0,0.2536037]
[1752701659018,0.84882395,119880.0,119870.0,0.2536037]
[1752701659223,0.84882395,119880.0,119870.0,0.32857055]
[1752701659424,1.19946315,119880.0,119870.0,0.32857055]
[1752701660122,1.08681202,119880.0,119870.0,0.2536037]
[1752701660428,0.2918193,119890.0,119880.0,0.05255]
[1752701660619,1.2385385,119890.0,119880.0,0.2195098]
[1752701661622,1.2395385,119890.0,119880.0,0.2195098]
[1752701663426,0.6434585,119890.0,119880.0,0.2535898]
[1752701663628,1.2394985,119890.0,119880.0,0.2535898]
[1752701664220,0.8888593,119890.0,119880.0,0.2535898]
[1752701664421,1.2394985,119890.0,119880.0,0.2535898]
[1752701666231,1.2394985,119890.0,119880.0,0.32852758]
[1752701667529,0.8888593,119890.0,119880.0,0.32852758]
[1752701667730,1.2394985,119890.0,119880.0,0.32852758]
[1752701668530,1.2394985,119890.0,119880.0,0.2535898]
[1752701668830,1.2394985,119890.0,119880.0,0.3585027]
[1752701669022,0.001,119890.0,119880.0,0.43344809]
[1752701669223,0.59696,119890.0,119880.0,0.7091419]
[1752701669826,0.59696,119890.0,119880.0,0.3585027]
[1752701670129,0.7637058,119890.0,119880.0,0.3585027]
[1752701673232,0.65106641,119890.0,119880.0,0.2535898]
[1752701676238,0.65106641,119890.0,119880.0,0.35845395]
[1752701676538,1.00170561,119890.0,119880.0,0.34025395]
[1752701677430,1.00170561,119890.0,119880.0,0.32437395]
[1752701677629,1.00170561,119890.0,119880.0,0.10506415]
[1752701678233,1.00170561,119890.0,119880.0,0.0002]
[1752701678538,1.00170561,119890.0,119880.0,0.07509248]
[1752701679236,1.00170561,119890.0,119880.0,0.24185228]